Cogmind - Beta 11.1 @@@ ROGUE MODE // 2022.12.05 @ 20:04:38 Player: ILikeGoodFood Result: Destroyed by G-34 Mercenary with Small Laser Performance ------------- Evolutions (0) 0 Regions Visited (4) 800 Robots Destroyed (15) 75 Value Destroyed (234) 234 Prototype IDs (0) 0 Alien Tech Used (0) 0 Bonus (0) 0 TOTAL SCORE: 1109 Bonus ------- None Cogmind --------- Core Integrity 0/250 Matter 300/300 Energy 125/125 System Corruption 4% Temperature Cool (6) Movement Flying (120) Ox1 Location -9/Mines Parts ------- > --- POWER (1) -------- Light Ion Engine > --- PROPULSION (2) --- Flight Unit > --- UTILITY (2) ------ Signal Interpreter > --- WEAPON (2) ------- Light Assault Rifle Makeshift Axe > --- INVENTORY (5) ---- Flight Unit Flight Unit Light Armor Plating Light Assault Rifle Mace Peak State ------------ > --- POWER ------------ Light Ion Engine > --- PROPULSION ------- Flight Unit Flight Unit > --- UTILITY ---------- Signal Interpreter Targeting Computer > --- WEAPON ----------- Light Assault Rifle Makeshift Axe > --- INVENTORY -------- Flight Unit Flight Unit Light Assault Rifle Mace [Rating: 10] Favorites ----------- Power Light Ion Engine Engine Light Ion Engine Propulsion Flight Unit Wheel Wheel Flight Unit Flight Unit Utility Signal Interpreter Storage Small Storage Unit Processor Signal Interpreter Weapon Light Assault Rifle Ballistic Gun Light Assault Rifle Launcher Rocket Launcher Special Weapon Mining Laser Slashing Weapon Makeshift Axe Build | -11 -10 -10 -10 -9 ------- Run | Scr Mat Min Exi Min Slots Evolved . | . . . . . Power . | . . . . . Propulsion . | . . . . . Utility . | . . . . . Weapon . | . . . . . Parts Attached 28 | 9 5 10 . 4 Power 4 | 1 . 2 . 1 Engine 4 | 1 . 2 . 1 Core . | . . . . . Reactor . | . . . . . Propulsion 8 | 5 . 2 . 1 Treads . | . . . . . Leg . | . . . . . Wheel 5 | 5 . . . . Hover . | . . . . . Flight 3 | . . 2 . 1 Utility 3 | 1 1 . . 1 Device . | . . . . . Storage 1 | 1 . . . . Processor 2 | . 1 . . 1 Hackware . | . . . . . Protection . | . . . . . Artifact . | . . . . . Weapon 13 | 2 4 6 . 1 Energy Gun . | . . . . . Energy Cannon . | . . . . . Ballistic Gun 8 | 2 2 4 . . Ballistic Cannon . | . . . . . Launcher 1 | . . 1 . . Special Weapon 3 | . 2 1 . . Impact Weapon . | . . . . . Slashing Weapon 1 | . . . . 1 Piercing Weapon . | . . . . . Special Melee Weapon . | . . . . . Unidentified Prototypes . | . . . . . Parts Lost 8 | . . 6 . 2 Power 2 | . . 1 . 1 Propulsion 3 | . . 2 . 1 Utility . | . . . . . Weapon 3 | . . 3 . . Highest Loss Streak 5 | . . 5 . 1 To Critical Strikes . | . . . . . Average Slot Usage (%) 85 | . 97 81 85 85 Engine 13 | . 14 13 14 12 Wheel 4 | . 28 . . . Flight 21 | . . 24 28 28 Storage 3 | . 14 2 . . Processor 13 | . 12 14 14 15 Ballistic Gun 24 | . 25 24 28 14 Slashing Weapon 1 | . . . . 14 Naked Turns . | . . . . . Heaviest Build 13 | 13 13 13 5 7 Greatest Support 26 | 26 20 20 8 8 Greatest Overweight (x) 3 | . . 3 . . Average Overweight (x) . | . . . . . Largest Inventory Capacity 8 | 8 8 8 5 5 Average Capacity 5 | 6 8 5 5 5 Most Carried 5 | 5 3 5 5 5 Average Carried 3 | 1 2 3 5 4 Final Capacity 8 | 8 8 5 5 5 Final Carried 5 | 2 2 5 5 5 Class Distribution -------------------- 72% | Scavenger-Mutant 27% | Mutant Dominant Class ---------------- Mutant | -10/Materials Scavenger-Mutant | -10/Mines Scavenger-Mutant | -10/Exiles Scavenger-Mutant | -9/Mines Resources | -11 -10 -10 -10 -9 ----------- Run | Scr Mat Min Exi Min Matter Collected 591 | 298 71 179 . 43 Remotely . | . . . . . Salvage Created 411 | 98 47 111 . 155 Parts 32 | 5 6 11 . 10 Haulers Intercepted . | . . . . . Recyclers Shooed . | . . . . . Parts Field Recycled . | . . . . . Retrieved Matter . | . . . . . Parts Self-Destructed . | . . . . . Prevented . | . . . . . Kills | -11 -10 -10 -10 -9 ------- Run | Scr Mat Min Exi Min Combat Hostiles Destroyed 14 | . 3 8 . 3 Melee 3 | . . . . 3 Guns 9 | . 3 6 . . AOE 2 | . . 2 . . Classes Destroyed 6 | 2 1 1 . 2 Tunneler 2 | 1 . 1 . . Recycler 1 | 1 . . . . Swarmer 9 | . 3 6 . . Grunt 1 | . . . . 1 Sentry 2 | . . . . 2 Assembled 2 | . . 2 . . Best Kill Streak 5 | 2 3 5 . 2 Combat Bots Only 5 | . 3 5 . 2 Max Kills in Single Turn 2 | 1 2 2 . 1 Gunslinging 1 | . 1 1 . . Exploded 1 | . . 1 . . Melee 1 | . . . . 1 Uniques/NPCs Destroyed . | . . . . . Combat | -11 -10 -10 -10 -9 -------- Run | Scr Mat Min Exi Min Damage Taken 944 | . 54 788 . 102 Core 258 | . . 217 . 41 Absorbed by Shields . | . . . . . Core Remaining (%) 100 | 100 . . . . Volleys Fired 36 | 2 7 27 . . Largest 2 | 2 2 2 . . Hottest 120 | 40 120 120 . . Shots Fired 71 | 4 13 54 . . Gun 64 | 4 11 49 . . Cannon . | . . . . . Launcher 3 | . . 3 . . Special 4 | . 2 2 . . Kinetic 64 | 4 11 49 . . Thermal 4 | . 2 2 . . Explosive 3 | . . 3 . . Electromagnetic . | . . . . . Robot Hit Streak 7 | 4 5 7 . . Robot Miss Streak 4 | . 1 4 . . Penetration Max . | . . . . . Secondary Targets 4 | . 1 3 . . Max Gunslinging Chain 1 | . 1 1 . . Shots Hit Robots 50 | 4 7 33 . 6 Core Hits 24 | 3 4 14 . 3 Critical Kills . | . . . . . Critical Parts Destroyed . | . . . . . Critical Strikes . | . . . . . Melee Attacks 8 | . . . . 8 Impact . | . . . . . Slashing 8 | . . . . 8 Piercing . | . . . . . Sneak Attacks 2 | . . . . 2 Combat Hostiles 2 | . . . . 2 Follow-up Attacks . | . . . . . Damage Inflicted 855 | 40 71 429 . 315 Guns 408 | 40 71 297 . . Cannons . | . . . . . Explosions 108 | . . 108 . . Melee 315 | . . . . 315 Ramming . | . . . . . Kinetic 408 | 40 71 297 . . Thermal 24 | . . 24 . . Explosive 108 | . . 108 . . Electromagnetic . | . . . . . Impact . | . . . . . Slashing 315 | . . . . 315 Piercing . | . . . . . Highest Corruption 4 | . 4 4 4 4 Average Corruption 3 | . 3 4 4 4 Corruption Purged . | . . . . . Corruption Blocked . | . . . . . Effects 20 | . 2 8 8 2 Message Errors 5 | . . 2 1 2 Matter Fused 3 | . . 2 1 . Heat Flow Errors 1 | . . . 1 . Energy Discharges 5 | . 1 2 2 . Data Loss (minor) 3 | . . 1 2 . Data Loss (major) 2 | . 1 . 1 . Alerts 1 | . . 1 . . Overload Shots . | . . . . . Overflow Damage 10 | . . . . 10 Projectiles . | . . . . . Explosions . | . . . . . Melee 10 | . . . . 10 Knockbacks . | . . . . . Impact . | . . . . . Kinetic . | . . . . . Secondary . | . . . . . Self-Inflicted Damage 44 | . . 44 . . Shots 1 | . . 1 . . Rammed . | . . . . . Targets Rammed . | . . . . . Kicked . | . . . . . Crushed . | . . . . . Highest Temperature 232 | . 40 60 232 6 Average Temperature 43 | . 18 13 119 6 Received Heat Transfer 89 | . . 20 . 69 Siege Activations . | . . . . . Robots Corrupted . | . . . . . Combat Hostiles . | . . . . . Parts Fried . | . . . . . Impact Corruptions . | . . . . . Robots Melted . | . . . . . Combat Hostiles . | . . . . . Parts Melted . | . . . . . Heat Transferred 50 | . . 50 . . Parts Sabotaged . | . . . . . Parts Stolen . | . . . . . Parts Stripped . | . . . . . Power Chain Reactions . | . . . . . Missiles Intercepted . | . . . . . Alert | -11 -10 -10 -10 -9 ------- Run | Scr Mat Min Exi Min Peak Influence 214 | 10 119 214 . 75 Initial 46 | . 6 46 . . Average 114 | 7 52 169 . 44 Maximum Alert Level 1 | . . 1 . . Low Security (%) 65 | 100 100 40 . 100 Level 1 34 | . . 59 . . Level 2 . | . . . . . Level 3 . | . . . . . Level 4 . | . . . . . Level 5 . | . . . . . High Security . | . . . . . Max Security . | . . . . . Squads Dispatched 3 | . 2 . . 1 Investigation 1 | . . . . 1 Extermination . | . . . . . Reinforcement 2 | . 2 . . . Assault . | . . . . . Garrison . | . . . . . Intercept . | . . . . . Searches Triggered . | . . . . . Construction Impeded . | . . . . . Haulers Reinforced . | . . . . . Active Scanning Responses . | . . . . . Cargo Convoy Interrupts . | . . . . . Stealth | -11 -10 -10 -10 -9 --------- Run | Scr Mat Min Exi Min Distress Signals 1 | . 1 . . . Communications Jammed . | . . . . . Distress Signals . | . . . . . Times Spotted 23 | . 7 12 . 4 Peak Tracking Total 7 | . 7 7 . 2 Tactical Retreats 1 | . . 1 . . Traps | -11 -10 -10 -10 -9 ------- Run | Scr Mat Min Exi Min Traps Triggered 3 | . 3 . . . Indirectly . | . . . . . Trap Hack Attempts . | . . . . . Triggered . | . . . . . Disarmed . | . . . . . Reprogrammed . | . . . . . Reused . | . . . . . Traps Extracted . | . . . . . Installed . | . . . . . Triggered . | . . . . . Machines | -11 -10 -10 -10 -9 ---------- Run | Scr Mat Min Exi Min Machines Disabled . | . . . . . Max in Single Turn . | . . . . . Machines Sabotaged . | . . . . . Garrisons Compromised . | . . . . . Overloaded Fab Kills . | . . . . . Hacking | -11 -10 -10 -10 -9 --------- Run | Scr Mat Min Exi Min Machines Accessed 4 | . 2 . 1 1 Terminals 2 | . 2 . . . Fabricators . | . . . . . Repair Stations . | . . . . . Recycling Units . | . . . . . Scanalyzers . | . . . . . Garrison Access . | . . . . . Total Hacks 21 | . 11 . 9 1 Successful 15 | . 5 . 9 1 Failed 6 | . 6 . . . Catastrophic . | . . . . . Database Lockouts . | . . . . . Manual 6 | . 4 . 2 . Terminals 11 | . 11 . . . Fabricators . | . . . . . Repair Stations . | . . . . . Recycling Units . | . . . . . Scanalyzers . | . . . . . Garrison Access . | . . . . . Terminal Hacks 15 | . 5 . 9 1 Record 9 | . . . 9 . Open Door 1 | . . . . 1 Emergency Access Points 1 | . 1 . . . Terminal Index 1 | . 1 . . . Locate Traps 2 | . 2 . . . Zone Layout 1 | . 1 . . . Fabricator Hacks . | . . . . . Repair Station Hacks . | . . . . . Recycling Unit Hacks . | . . . . . Scanalyzer . | . . . . . Garrison Access Hacks . | . . . . . Unauthorized Hacks . | . . . . . Terminals . | . . . . . Fabricators . | . . . . . Repair Stations . | . . . . . Recycling Units . | . . . . . Scanalyzers . | . . . . . Garrison Access . | . . . . . Data Cores Recovered . | . . . . . Used . | . . . . . Hacking Detections 2 | . 2 . . . Full Trace Events . | . . . . . Feedback Events . | . . . . . Feedback Blocked . | . . . . . Robot Schematics Acquired . | . . . . . Robots Built . | . . . . . Authchips . | . . . . . Time . | . . . . . Total Robot Build Rating . | . . . . . Part Schematics Acquired . | . . . . . Parts Built . | . . . . . Authchips . | . . . . . Time . | . . . . . Total Part Build Rating . | . . . . . Parts Repaired . | . . . . . Time . | . . . . . Parts Recycled . | . . . . . Recycled Matter . | . . . . . Retrieved Matter . | . . . . . Retrieved Components . | . . . . . Parts Scanalyzed . | . . . . . Part Schematics Acquired . | . . . . . Parts Damaged . | . . . . . Bothacking | -11 -10 -10 -10 -9 ------------ Run | Scr Mat Min Exi Min Used RIF Installer . | . . . . . Robots Hacked . | . . . . . Non-combat . | . . . . . Combat . | . . . . . Robot Hacks Applied . | . . . . . Relay Couplers Released . | . . . . . Fabnet Peak Effective % . | . . . . . Robots Rewired . | . . . . . Allies Hacked . | . . . . . Hacks Repelled . | . . . . . Allies | -11 -10 -10 -10 -9 -------- Run | Scr Mat Min Exi Min Total Allies 2 | . . 2 . . Largest Group 2 | . . 2 2 . Highest-Rated Group 50 | . . 50 50 . Highest-Rated Ally 31 | . . 31 31 . Total Orders . | . . . . . Ally Attacks . | . . . . . Total Damage . | . . . . . Kills . | . . . . . Allies Corrupted . | . . . . . Allies Melted . | . . . . . Intel | -11 -10 -10 -10 -9 ------- Run | Scr Mat Min Exi Min Robot Analysis Total . | . . . . . Derelict Logs Recovered 1 | . . 1 . . Drone Launches . | . . . . . Drone Recoveries . | . . . . . Exploration | -11 -10 -10 -10 -9 ------------- Run | Scr Mat Min Exi Min Turns Passed 947 | 67 133 387 277 83 Spaces Moved 1531 | 53 117 539 689 133 Core 13 | 9 . 4 . . Treads . | . . . . . Legs . | . . . . . Wheels 162 | 44 117 1 . . Hover . | . . . . . Flight 1356 | . . 534 689 133 Fastest Speed 37 | 50 80 37 37 37 Average Speed 42 | 76 80 39 37 37 Slowest Speed 200 | 90 80 200 37 37 Overloaded Moves . | . . . . . Propulsion Burnouts . | . . . . . Robots Hopped 2 | . . 2 . . Cave-ins Triggered . | . . . . . Exploration Rate (%) 48 | 4 27 91 91 27 Regions Visited 4 Branch Regions 3 Pre-discovered Areas 1 | . . 1 . . Known Exits Taken 3 | . 1 1 1 . Unknown Exits Taken 1 | 1 . . . . Scrap Searched 1 | . . 1 . . Spaces Dug 2 | . 2 . . . Terrain Destroyed 40 | . 2 38 . . Melee . | . . . . . Projectile 3 | . 2 1 . . AOE 37 | . . 37 . . Terrain Rammed . | . . . . . Walls Destroyed . | . . . . . Machines Disabled . | . . . . . Actions | -11 -10 -10 -10 -9 --------- Run | Scr Mat Min Exi Min Total 1743 | 75 138 661 710 159 Wait 108 | . 7 72 22 7 Move 1523 | 52 116 534 688 133 Hop 2 | . . 2 . . Pick Up 28 | 10 2 12 . 4 Fast Attach . | . . . . . Attach 16 | 6 1 7 . 2 Detach . | . . . . . Swap 12 | 3 4 3 . 2 Drop 10 | 2 1 4 . 3 Fire 36 | 2 7 27 . . Melee 8 | . . . . 8 Ram . | . . . . . Kick . | . . . . . Crush . | . . . . . Escape Stasis . | . . . . . Rewire . | . . . . . Trap . | . . . . . Miscellaneous . | . . . . . Route ------- -11/Scrapyard -10/Materials (discovered 2 exits: *Min x2) -10/Mines (discovered 3 exits: *Mat x2 / *Exi) -10/Exiles (discovered 2 exits: *Min x2) -9/Mines History --------- Turn | Location | Event 7 | -11/Scrapyard | Discovered new exit (range 16) 68 | -11/Scrapyard | Entered Materials 134 | -10/Materials | Discovered new exit (range 17) 195 | -10/Materials | Discovered new exit (range 8) 200 | -10/Materials | Identified exit to Mines 201 | -10/Materials | Entered Mines 231 | -10/Mines | Core integrity fell below 50% 249 | -10/Mines | Core integrity fell below 20% 261 | -10/Mines | Lost 5 parts (1p2n2w) 302 | -10/Mines | Found a hidden stash of uninstalled traps 323 | -10/Mines | Assembled infested the area 333 | -10/Mines | Received a Rocket Launcher from a helpful Derelict 378 | -10/Mines | Discovered new exit (range 16) 384 | -10/Mines | Identified exit to Materials 487 | -10/Mines | A weapon hastily lodged in a ceiling crevice suddenly fell to the ground 540 | -10/Mines | Discovered exit to Materials (range 5) 541 | -10/Mines | Learned location of Storage (-7) 554 | -10/Mines | Deemed a non-threat by the Exiles lab entrance 554 | -10/Mines | Discovered new exit (range 5) 555 | -10/Mines | Identified exit to Exiles 558 | -10/Mines | Build established: Scavenger-Mutant 588 | -10/Mines | Entered Exiles 588 | -10/Exiles | Accompanied by 2 allies 594 | -10/Exiles | Discovered new exit (range 15) 599 | -10/Exiles | Identified exit to Mines 607 | -10/Exiles | Met 8R-AWN 614 | -10/Exiles | Met EX-HEX 618 | -10/Exiles | Led the pair of lost Derelicts to a safe place 670 | -10/Exiles | Met EX-DEC 689 | -10/Exiles | Met EX-BIN 732 | -10/Exiles | Discovered exit to Mines (range 14) 760 | -10/Exiles | Visited The Gauntlet 865 | -10/Exiles | Entered Mines 916 | -9/Mines | Met a Derelict shopkeep closing up shop 921 | -9/Mines | Met a Derelict bent on vengeance 948 | -9/Mines | Destroyed by G-34 Mercenary with Small Laser Last Messages --------------- Acquired Targeting Computer. Acquired 30 matter. Discarded Targeting Computer. Acquired Salvage Targeting Computer. Dropped Salvage Targeting Computer. Acquired Lgt. Armor Plating. K QY66TWCQ>Open Door Sealed Doors opened. KJ-9WE(g): "Sorry, the Unaware have moved into these parts and I'm closing up shop. No more sales from me!" ALERT: Derelict activity detected in mines. Dispatching investigation squad. Sneak attack on G-34 Mercenary. G-34 Mercenary destroyed. Sneak attack on G-34 Mercenary. T-07 Excavator destroyed. Destroyed Ion Engine. Flight Unit destroyed. Map ----- +----------------------------------------------------+ | ?????????????????????????????????????????? | | ?????????????????????????????????????????? | | ?????????????????????????????????????????? | | ?????????????????????????????????????????? | | ?????????????????????????????????????????? | | ?????????????????????????????????????????? | | ?????????????????????????????????????????? | | ?????????????????????????????????????????? | | ?????????????????????????????????????????? | | ?????????????????????????????????????????? | | ?????????????????????????????????????????? | | ?????????????????????????????????????????? | | ?????????????????????????????????????????? | | ?????????????????????????????????????????? | | ?????????????????????????????????????????? | | ?????????????????????????????????????????? | | ?????????????????????????????????????????? | | ?????????????????????????????????????????? | | ?????????????????????????????????????????? | | ?????????????????????????????????????????? | | ?????????????????????????????????????????? | | ??????????????????????????????????? #???? | | ???????????????????????????????? #????? | | ???????????????????????####### #?????? | | ???????????????????????# g%!g #?????? | | ???????????????????????# @== #????? | | ?????????#####???????### ###### #??? | | ????????## ##?????## [ ##??????????????? | | ???????## #????## #??????????????? | | ???????# ###### #??????????????? | | ???????# ## ##??????????????? | | ???????# ######???????????????? | | ???????## ! ##????????????????????? | | ????????## #?????????????????????? | | ?????????# ##?????????????????????? | | ?????????# = u ##??????????????????????? | | ?????????# ! ##???????????????????????? | | ?????????# #????????????????????????? | | ?????????## ##????????????????????????? | | ??????????# ##?????????????????????????? | | ??????????# #??????????????????????????? | | ?????????## #??????????????????????????? | | ????????## #??????????????????????????? | | ???????## #????????????######????????? | | ???????# ##???????????##"= "##???????? | | ???????# #????????????#!!![! #???????? | | ??????## #????????????# !=%!!#???????? | | ???#### #????????????## %![##???????? | | ??## ##????????????###++######????? | | ### #?????????????# !== #????? | +----------------------------------------------------+ Best States ------------- Heat Dissipation 25 Energy Generation 10 Energy Capacity 250 Matter Stores 300 Matter Capacity 300 Sight Range 16 Terrain Scan Density 10 Evasion (%) 62 Targeting Accuracy 5 Item Schematics ----------------- None Robot Schematics ------------------ None Fabricated ------------ Nothing Alien Tech Used ----------------- None Achievements -------------- None Challenges ------------ None Game ------ Seed TransportActuatorDoublenader Manual? 0 Play Time 00:18:15 Cumulative 38.4 hours Start 2022.12.05 @ 19:47:32 End 2022.12.05 @ 20:04:38 Sessions 1 Manual Loads 0 Difficulty Rogue Special Mode None Game No. 65 Rogue 65 Adventurer 0 Explorer 0 Win Type - Total 0 Types 0/0/0/0/0/0/0/0/0 Lore% 22 Gallery% 29 Achievement% 22 Wizard Run 0 Options --------- ASCII 0 Keyboard 0 Movement Mouse Keybinds 0 Fullscreen 2 Font 18/SmallcapsGlow Map View 76x50 Tactical HUD 0 Map Filters NONE Filters NONE Steam 1 RUN: c1599e30-e2a6-4087-8def-451cbdfe152b